[Event "Titled Tuesday Blitz December 7 2021"]
[White "Azadaliyev, Jahandar"]
[Black "Baskin, Robert"]
[WhiteFideId "13425811"]
[BlackFideId "24662402"]
[WhiteElo "1795"]
[BlackElo "2488"]
[Result "1/2-1/2"]
[Round "05"]
[TimeControl "180+1"]
[Date "2021.12.07"]
[WhiteClock "0:01:20"]
[BlackClock "0:00:22"]

1. d4 {[%clk 0:03:00]}  Nf6 {[%clk 0:02:58]} 2. c4 {[%clk 0:03:01]}  e6 {[%clk 0:02:58]} 3. Nf3 {[%clk 0:03:01]}  Bb4+ {[%clk 0:02:54]} 4. Nbd2 {[%clk 0:03:00]}  O-O {[%clk 0:02:52]} 5. g3 {[%clk 0:02:59]}  b6 {[%clk 0:02:49]} 6. a3 {[%clk 0:02:59]}  Bxd2+ {[%clk 0:02:48]} 7. Bxd2 {[%clk 0:03:00]}  Bb7 {[%clk 0:02:47]} 8. Bg2 {[%clk 0:03:00]}  d6 {[%clk 0:02:41]} 9. O-O {[%clk 0:02:59]}  a5 {[%clk 0:02:40]} 10. Rc1 {[%clk 0:02:59]}  Nbd7 {[%clk 0:02:37]} 11. Bc3 {[%clk 0:02:56]}  a4 {[%clk 0:02:36]} 12. Re1 {[%clk 0:02:53]}  Be4 {[%clk 0:02:27]} 13. Nd2 {[%clk 0:02:46]}  Bxg2 {[%clk 0:02:26]} 14. Kxg2 {[%clk 0:02:46]}  d5 {[%clk 0:02:13]} 15. e4 {[%clk 0:02:44]}  dxe4 {[%clk 0:02:11]} 16. Nxe4 {[%clk 0:02:45]}  Nxe4 {[%clk 0:02:11]} 17. Rxe4 {[%clk 0:02:46]}  Nf6 {[%clk 0:02:11]} 18. Re3 {[%clk 0:02:43]}  Qd7 {[%clk 0:02:10]} 19. Qf3 {[%clk 0:02:42]}  Qd8 {[%clk 0:01:29]} 20. Rd1 {[%clk 0:02:31]}  Ra7 {[%clk 0:01:24]} 21. d5 {[%clk 0:02:21]}  exd5 {[%clk 0:01:22]} 22. Bxf6 {[%clk 0:02:21]}  Qxf6 {[%clk 0:01:21]} 23. Qxf6 {[%clk 0:02:20]}  gxf6 {[%clk 0:01:22]} 24. Rxd5 {[%clk 0:02:18]}  Ra5 {[%clk 0:01:14]} 25. Rxa5 {[%clk 0:02:16]}  bxa5 {[%clk 0:01:15]} 26. Re7 {[%clk 0:02:15]}  Rb8 {[%clk 0:01:15]} 27. Re2 {[%clk 0:02:08]}  Rd8 {[%clk 0:00:50]} 28. Kf3 {[%clk 0:02:01]}  Rd3+ {[%clk 0:00:44]} 29. Ke4 {[%clk 0:01:59]}  Rb3 {[%clk 0:00:43]} 30. Kd4 {[%clk 0:01:59]}  Kg7 {[%clk 0:00:41]} 31. Kc5 {[%clk 0:01:51]}  Rb6 {[%clk 0:00:38]} 32. f4 {[%clk 0:01:48]}  h5 {[%clk 0:00:35]} 33. Kd5 {[%clk 0:01:48]}  Rd6+ {[%clk 0:00:27]} 34. Kc5 {[%clk 0:01:46]}  Rb6 {[%clk 0:00:27]} 35. Rd2 {[%clk 0:01:23]}  Kg6 {[%clk 0:00:22]} 36. Re2 {[%clk 0:01:20]}  Kg7 {[%clk 0:00:22]} 1/2-1/2


[Site "https://www.chess.com"]

[Event "Titled Tuesday Blitz December 7 2021"]
[White "Bach, Ngoc Thuy Duong"]
[Black "Kadam, Om Manish"]
[WhiteFideId "12408956"]
[BlackFideId "45076294"]
[WhiteElo "1896"]
[BlackElo "1729"]
[Result "0-1"]
[Round "05"]
[TimeControl "180+1"]
[Date "2021.12.07"]
[WhiteClock "0:00:08"]
[BlackClock "0:00:27"]

1. d4 {[%clk 0:02:17]}  Nf6 {[%clk 0:02:59]} 2. c4 {[%clk 0:02:16]}  e6 {[%clk 0:02:59]} 3. Nc3 {[%clk 0:02:15]}  d5 {[%clk 0:02:59]} 4. cxd5 {[%clk 0:02:15]}  exd5 {[%clk 0:03:00]} 5. Bg5 {[%clk 0:02:15]}  Be7 {[%clk 0:03:00]} 6. e3 {[%clk 0:02:15]}  O-O {[%clk 0:03:00]} 7. Bd3 {[%clk 0:02:14]}  Nbd7 {[%clk 0:03:00]} 8. Nf3 {[%clk 0:02:12]}  c6 {[%clk 0:03:00]} 9. O-O {[%clk 0:02:12]}  Re8 {[%clk 0:03:01]} 10. Qc2 {[%clk 0:02:12]}  Nf8 {[%clk 0:03:01]} 11. h3 {[%clk 0:02:11]}  h6 {[%clk 0:03:00]} 12. Bf4 {[%clk 0:02:10]}  Ne6 {[%clk 0:02:59]} 13. Bh2 {[%clk 0:02:08]}  g6 {[%clk 0:02:54]} 14. Ne5 {[%clk 0:02:07]}  Ng7 {[%clk 0:02:42]} 15. Rae1 {[%clk 0:02:02]}  Bf5 {[%clk 0:02:34]} 16. f3 {[%clk 0:01:40]}  Bb4 {[%clk 0:02:21]} 17. Rd1 {[%clk 0:01:37]}  Qb6 {[%clk 0:02:13]} 18. Na4 {[%clk 0:01:17]}  Qa5 {[%clk 0:02:09]} 19. e4 {[%clk 0:00:57]}  Be6 {[%clk 0:02:04]} 20. b3 {[%clk 0:00:53]}  Rad8 {[%clk 0:02:02]} 21. Bf4 {[%clk 0:00:45]}  dxe4 {[%clk 0:01:57]} 22. fxe4 {[%clk 0:00:43]}  Rxd4 {[%clk 0:01:50]} 23. Bxh6 {[%clk 0:00:43]}  Qxe5 {[%clk 0:01:49]} 24. Bf4 {[%clk 0:00:40]}  Qh5 {[%clk 0:01:37]} 25. Be3 {[%clk 0:00:40]}  Qe5 {[%clk 0:00:59]} 26. Bf4 {[%clk 0:00:39]}  Qa5 {[%clk 0:00:39]} 27. Be3 {[%clk 0:00:38]}  Rd6 {[%clk 0:00:38]} 28. Rxf6 {[%clk 0:00:26]}  Bxb3 {[%clk 0:00:37]} 29. axb3 {[%clk 0:00:26]}  Rxf6 {[%clk 0:00:36]} 30. Bd4 {[%clk 0:00:19]}  Rd6 {[%clk 0:00:34]} 31. Bb2 {[%clk 0:00:18]}  Red8 {[%clk 0:00:26]} 32. e5 {[%clk 0:00:16]}  Rd5 {[%clk 0:00:24]} 33. Be2 {[%clk 0:00:14]}  Ne6 {[%clk 0:00:21]} 34. Rf1 {[%clk 0:00:13]}  Rxe5 {[%clk 0:00:20]} 35. Bxe5 {[%clk 0:00:11]}  Qxe5 {[%clk 0:00:21]} 36. Bf3 {[%clk 0:00:10]}  Nd4 {[%clk 0:00:21]} 37. Qf2 {[%clk 0:00:09]}  f5 {[%clk 0:00:20]} 38. Nb2 {[%clk 0:00:09]}  Bc5 {[%clk 0:00:20]} 39. Nd3 {[%clk 0:00:09]}  Nxf3+ {[%clk 0:00:21]} 40. Kh1 {[%clk 0:00:07]}  Bxf2 {[%clk 0:00:21]} 41. Nxe5 {[%clk 0:00:06]}  Nxe5 {[%clk 0:00:22]} 42. Rxf2 {[%clk 0:00:06]}  Rd1+ {[%clk 0:00:23]} 43. Kh2 {[%clk 0:00:07]}  Kf7 {[%clk 0:00:24]} 44. Ra2 {[%clk 0:00:06]}  a6 {[%clk 0:00:23]} 45. Ra5 {[%clk 0:00:06]}  Ke6 {[%clk 0:00:24]} 46. Ra4 {[%clk 0:00:06]}  Rd5 {[%clk 0:00:24]} 47. Rb4 {[%clk 0:00:07]}  Rb5 {[%clk 0:00:25]} 48. Rxb5 {[%clk 0:00:07]}  axb5 {[%clk 0:00:25]} 49. Kg3 {[%clk 0:00:08]}  c5 {[%clk 0:00:26]} 50. Kf4 {[%clk 0:00:08]}  c4 {[%clk 0:00:27]} 0-1


[Site "https://www.chess.com"]

[Event "Titled Tuesday Blitz December 7 2021"]
[White "Bloomer, Josh"]
[Black "Hjartarson, Johann"]
[WhiteFideId "2020416"]
[BlackFideId "2300044"]
[WhiteElo "2425"]
[BlackElo "2502"]
[Result "1-0"]
[Round "05"]
[TimeControl "180+1"]
[Date "2021.12.07"]
[WhiteClock "0:01:58"]
[BlackClock "0:01:29"]

1. e4 {[%clk 0:03:00]}  Nf6 {[%clk 0:02:59]} 2. e5 {[%clk 0:03:00]}  Nd5 {[%clk 0:02:59]} 3. d4 {[%clk 0:03:01]}  d6 {[%clk 0:02:59]} 4. Nf3 {[%clk 0:03:02]}  Bg4 {[%clk 0:02:58]} 5. Be2 {[%clk 0:03:02]}  e6 {[%clk 0:02:58]} 6. O-O {[%clk 0:03:02]}  Be7 {[%clk 0:02:57]} 7. c4 {[%clk 0:03:02]}  Nb6 {[%clk 0:02:57]} 8. Nc3 {[%clk 0:03:02]}  O-O {[%clk 0:02:56]} 9. Be3 {[%clk 0:02:54]}  Nc6 {[%clk 0:02:54]} 10. exd6 {[%clk 0:02:55]}  cxd6 {[%clk 0:02:54]} 11. d5 {[%clk 0:02:55]}  exd5 {[%clk 0:02:53]} 12. Nxd5 {[%clk 0:02:54]}  Nxd5 {[%clk 0:02:53]} 13. Qxd5 {[%clk 0:02:49]}  Bf6 {[%clk 0:02:52]} 14. Qd2 {[%clk 0:02:44]}  Qa5 {[%clk 0:02:50]} 15. Qxd6 {[%clk 0:02:31]}  Bxb2 {[%clk 0:02:32]} 16. Rab1 {[%clk 0:02:29]}  Ba3 {[%clk 0:02:17]} 17. Qg3 {[%clk 0:02:24]}  Bf5 {[%clk 0:02:02]} 18. Rb5 {[%clk 0:02:23]}  Qc3 {[%clk 0:01:49]} 19. Rxf5 {[%clk 0:02:20]}  g6 {[%clk 0:01:46]} 20. Rb5 {[%clk 0:02:12]}  b6 {[%clk 0:01:42]} 21. Rb3 {[%clk 0:02:11]}  Qa5 {[%clk 0:01:42]} 22. Nd4 {[%clk 0:01:58]}  Nxd4 {[%clk 0:01:35]} 23. Bxd4 {[%clk 0:01:59]}  Rfe8 {[%clk 0:01:29]} 24. Rxa3 {[%clk 0:01:58]} 1-0


[Site "https://www.chess.com"]

[Event "Titled Tuesday Blitz December 7 2021"]
[White "Brunner, Nicolas"]
[Black "Csonka, Balazs"]
[WhiteFideId "620246"]
[BlackFideId "742910"]
[WhiteElo "2372"]
[BlackElo "2404"]
[Result "1/2-1/2"]
[Round "05"]
[TimeControl "180+1"]
[Date "2021.12.07"]
[WhiteClock "0:02:48"]
[BlackClock "0:02:42"]

1. d4 {[%clk 0:03:00]}  d5 {[%clk 0:02:58]} 2. c4 {[%clk 0:03:00]}  c6 {[%clk 0:02:58]} 3. cxd5 {[%clk 0:02:58]}  cxd5 {[%clk 0:02:59]} 4. Nc3 {[%clk 0:02:59]}  Nf6 {[%clk 0:02:58]} 5. Bf4 {[%clk 0:02:57]}  Nc6 {[%clk 0:02:57]} 6. e3 {[%clk 0:02:57]}  a6 {[%clk 0:02:56]} 7. Bd3 {[%clk 0:02:56]}  Bg4 {[%clk 0:02:55]} 8. Nge2 {[%clk 0:02:51]}  e6 {[%clk 0:02:54]} 9. O-O {[%clk 0:02:50]}  Bxe2 {[%clk 0:02:42]} 10. Qxe2 {[%clk 0:02:48]}  Bd6 {[%clk 0:02:42]} 1/2-1/2


[Site "https://www.chess.com"]

[Event "Titled Tuesday Blitz December 7 2021"]
[White "Cvetanovic, Uros"]
[Black "Chen, Justin"]
[WhiteFideId "900672"]
[BlackFideId "2098199"]
[WhiteElo "2282"]
[BlackElo "2605"]
[Result "1-0"]
[Round "05"]
[TimeControl "180+1"]
[Date "2021.12.07"]
[WhiteClock "0:00:12"]
[BlackClock "0:00:03"]

1. Nc3 {[%clk 0:02:59]}  d5 {[%clk 0:01:56]} 2. e4 {[%clk 0:02:59]}  dxe4 {[%clk 0:01:55]} 3. Nxe4 {[%clk 0:02:59]}  Nf6 {[%clk 0:01:56]} 4. Nxf6+ {[%clk 0:02:59]}  exf6 {[%clk 0:01:56]} 5. Bc4 {[%clk 0:02:57]}  Bd6 {[%clk 0:01:56]} 6. Qe2+ {[%clk 0:02:57]}  Qe7 {[%clk 0:01:56]} 7. Qxe7+ {[%clk 0:02:56]}  Kxe7 {[%clk 0:01:57]} 8. Nf3 {[%clk 0:02:52]}  Be6 {[%clk 0:01:57]} 9. Bb3 {[%clk 0:02:49]}  a5 {[%clk 0:01:54]} 10. d4 {[%clk 0:02:46]}  a4 {[%clk 0:01:47]} 11. Bxe6 {[%clk 0:02:45]}  fxe6 {[%clk 0:01:48]} 12. O-O {[%clk 0:02:19]}  Nd7 {[%clk 0:01:47]} 13. Re1 {[%clk 0:02:18]}  Kf7 {[%clk 0:01:47]} 14. Be3 {[%clk 0:02:11]}  Rhe8 {[%clk 0:01:45]} 15. Rad1 {[%clk 0:02:07]}  Rad8 {[%clk 0:01:42]} 16. c4 {[%clk 0:02:05]}  e5 {[%clk 0:01:35]} 17. d5 {[%clk 0:01:56]}  Nc5 {[%clk 0:01:31]} 18. Re2 {[%clk 0:01:29]}  Bf8 {[%clk 0:01:29]} 19. Nd2 {[%clk 0:01:27]}  c6 {[%clk 0:01:23]} 20. Nb1 {[%clk 0:01:22]}  cxd5 {[%clk 0:01:18]} 21. cxd5 {[%clk 0:01:22]}  Rd7 {[%clk 0:01:09]} 22. Nc3 {[%clk 0:01:20]}  Red8 {[%clk 0:01:07]} 23. g3 {[%clk 0:00:57]}  a3 {[%clk 0:00:50]} 24. b3 {[%clk 0:00:42]}  Na6 {[%clk 0:00:48]} 25. Bb6 {[%clk 0:00:33]}  Rc8 {[%clk 0:00:47]} 26. Nb5 {[%clk 0:00:33]}  Nb4 {[%clk 0:00:33]} 27. d6 {[%clk 0:00:28]}  Rc2 {[%clk 0:00:19]} 28. Rdd2 {[%clk 0:00:23]}  Rc6 {[%clk 0:00:12]} 29. Ba5 {[%clk 0:00:23]}  Na6 {[%clk 0:00:06]} 30. Bc7 {[%clk 0:00:16]}  Ke6 {[%clk 0:00:03]} 31. f4 {[%clk 0:00:15]}  Kf5 {[%clk 0:00:02]} 32. fxe5 {[%clk 0:00:15]}  fxe5 {[%clk 0:00:03]} 33. Rf2+ {[%clk 0:00:16]}  Ke6 {[%clk 0:00:03]} 34. Rxf8 {[%clk 0:00:16]}  Nxc7 {[%clk 0:00:04]} 35. Nxc7+ {[%clk 0:00:15]}  Rcxc7 {[%clk 0:00:03]} 36. dxc7 {[%clk 0:00:14]}  Rxc7 {[%clk 0:00:02]} 37. Re8+ {[%clk 0:00:12]}  Kf7 {[%clk 0:00:03]} 38. Rxe5 {[%clk 0:00:12]}  Kf6 {[%clk 0:00:02]} 39. Re4 {[%clk 0:00:11]}  b5 {[%clk 0:00:02]} 40. Rf4+ {[%clk 0:00:12]}  Kg6 {[%clk 0:00:03]} 41. Re2 {[%clk 0:00:13]}  Rc2 {[%clk 0:00:03]} 42. Rxc2 {[%clk 0:00:12]} 1-0


[Site "https://www.chess.com"]

[Event "Titled Tuesday Blitz December 7 2021"]
[White "Daniel, Damian"]
[Black "Perez Gormaz, Matias"]
[WhiteFideId "1183621"]
[BlackFideId "3406342"]
[WhiteElo "2055"]
[BlackElo "2352"]
[Result "1-0"]
[Round "05"]
[TimeControl "180+1"]
[Date "2021.12.07"]
[WhiteClock "0:00:06"]
[BlackClock "0:00:01"]

1. Nf3 {[%clk 0:03:00]}  d5 {[%clk 0:03:00]} 2. g3 {[%clk 0:02:59]}  Nf6 {[%clk 0:02:57]} 3. Bg2 {[%clk 0:02:59]}  c6 {[%clk 0:02:57]} 4. c4 {[%clk 0:02:59]}  e6 {[%clk 0:02:56]} 5. cxd5 {[%clk 0:02:56]}  exd5 {[%clk 0:02:57]} 6. O-O {[%clk 0:02:54]}  Be7 {[%clk 0:02:55]} 7. d3 {[%clk 0:02:53]}  O-O {[%clk 0:02:55]} 8. Nc3 {[%clk 0:02:54]}  d4 {[%clk 0:02:39]} 9. Ne4 {[%clk 0:02:53]}  Nxe4 {[%clk 0:02:37]} 10. dxe4 {[%clk 0:02:54]}  c5 {[%clk 0:02:37]} 11. e3 {[%clk 0:02:49]}  Nc6 {[%clk 0:02:35]} 12. exd4 {[%clk 0:02:48]}  cxd4 {[%clk 0:02:36]} 13. Ne1 {[%clk 0:02:34]}  Be6 {[%clk 0:02:22]} 14. Nd3 {[%clk 0:02:27]}  Qd7 {[%clk 0:02:23]} 15. f4 {[%clk 0:02:17]}  f6 {[%clk 0:02:19]} 16. Bd2 {[%clk 0:02:09]}  a5 {[%clk 0:02:16]} 17. a3 {[%clk 0:01:52]}  Bc4 {[%clk 0:02:12]} 18. Qf3 {[%clk 0:01:47]}  Rac8 {[%clk 0:02:01]} 19. Rac1 {[%clk 0:01:46]}  b5 {[%clk 0:01:58]} 20. Rfe1 {[%clk 0:01:37]}  a4 {[%clk 0:01:52]} 21. Bf1 {[%clk 0:01:28]}  Bd6 {[%clk 0:01:27]} 22. Qh5 {[%clk 0:01:20]}  Qe7 {[%clk 0:01:20]} 23. Nf2 {[%clk 0:01:09]}  Bxf1 {[%clk 0:00:41]} 24. Rxf1 {[%clk 0:01:08]}  Na7 {[%clk 0:00:26]} 25. Qd5+ {[%clk 0:00:58]}  Kh8 {[%clk 0:00:24]} 26. Nd3 {[%clk 0:00:58]}  Rcd8 {[%clk 0:00:22]} 27. Ba5 {[%clk 0:00:54]}  Rd7 {[%clk 0:00:19]} 28. Qf5 {[%clk 0:00:46]}  g6 {[%clk 0:00:18]} 29. Qh3 {[%clk 0:00:38]}  f5 {[%clk 0:00:16]} 30. e5 {[%clk 0:00:37]}  Bb8 {[%clk 0:00:16]} 31. Qg2 {[%clk 0:00:36]}  Qe6 {[%clk 0:00:13]} 32. Rc2 {[%clk 0:00:36]}  Rc8 {[%clk 0:00:13]} 33. Rfc1 {[%clk 0:00:33]}  Rxc2 {[%clk 0:00:12]} 34. Rxc2 {[%clk 0:00:34]}  Kg7 {[%clk 0:00:12]} 35. h4 {[%clk 0:00:32]}  Qb3 {[%clk 0:00:11]} 36. Nc5 {[%clk 0:00:30]}  Qe3+ {[%clk 0:00:12]} 37. Qf2 {[%clk 0:00:30]}  Rd5 {[%clk 0:00:08]} 38. Ne6+ {[%clk 0:00:26]}  Kh6 {[%clk 0:00:08]} 39. Bb4 {[%clk 0:00:22]}  Qxf2+ {[%clk 0:00:04]} 40. Kxf2 {[%clk 0:00:21]}  d3 {[%clk 0:00:05]} 41. Rd2 {[%clk 0:00:18]}  Kh5 {[%clk 0:00:02]} 42. Kf3 {[%clk 0:00:17]}  Nc6 {[%clk 0:00:02]} 43. Ng7+ {[%clk 0:00:15]}  Kh6 {[%clk 0:00:02]} 44. Bf8 {[%clk 0:00:15]}  Nd4+ {[%clk 0:00:01]} 45. Ke3 {[%clk 0:00:14]}  Ba7 {[%clk 0:00:01]} 46. Kxd3 {[%clk 0:00:06]} 1-0


[Site "https://www.chess.com"]

[Event "Titled Tuesday Blitz December 7 2021"]
[White "Demchenko, Anton"]
[Black "Dronavalli, Harika"]
[WhiteFideId "4160258"]
[BlackFideId "5015197"]
[WhiteElo "2531"]
[BlackElo "2382"]
[Result "0-1"]
[Round "05"]
[TimeControl "180+1"]
[Date "2021.12.07"]
[WhiteClock "0:00:12"]
[BlackClock "0:00:24"]

1. e4 {[%clk 0:03:00]}  e6 {[%clk 0:03:00]} 2. d4 {[%clk 0:03:01]}  d5 {[%clk 0:03:00]} 3. Nd2 {[%clk 0:03:01]}  c5 {[%clk 0:02:59]} 4. exd5 {[%clk 0:03:02]}  exd5 {[%clk 0:02:59]} 5. Ngf3 {[%clk 0:03:02]}  Nc6 {[%clk 0:02:58]} 6. Bb5 {[%clk 0:03:02]}  Qe7+ {[%clk 0:02:59]} 7. Be2 {[%clk 0:03:01]}  Qc7 {[%clk 0:02:59]} 8. O-O {[%clk 0:03:01]}  Nf6 {[%clk 0:02:59]} 9. Re1 {[%clk 0:03:00]}  Be7 {[%clk 0:02:53]} 10. dxc5 {[%clk 0:03:00]}  Bxc5 {[%clk 0:02:43]} 11. Nb3 {[%clk 0:02:58]}  Bb6 {[%clk 0:02:32]} 12. Bd3+ {[%clk 0:02:54]}  Be6 {[%clk 0:02:26]} 13. Be3 {[%clk 0:02:55]}  Bxe3 {[%clk 0:02:08]} 14. Rxe3 {[%clk 0:02:54]}  O-O {[%clk 0:01:55]} 15. h3 {[%clk 0:02:51]}  h6 {[%clk 0:01:51]} 16. Nbd4 {[%clk 0:02:45]}  Rae8 {[%clk 0:01:47]} 17. c3 {[%clk 0:02:44]}  Bd7 {[%clk 0:01:42]} 18. Rxe8 {[%clk 0:02:34]}  Rxe8 {[%clk 0:01:43]} 19. Qb3 {[%clk 0:02:32]}  Nxd4 {[%clk 0:01:38]} 20. Nxd4 {[%clk 0:02:32]}  a6 {[%clk 0:01:35]} 21. Rd1 {[%clk 0:02:10]}  Bc8 {[%clk 0:01:34]} 22. Bf1 {[%clk 0:02:04]}  Qe5 {[%clk 0:01:31]} 23. g3 {[%clk 0:01:54]}  Qh5 {[%clk 0:01:27]} 24. h4 {[%clk 0:01:36]}  g5 {[%clk 0:01:25]} 25. hxg5 {[%clk 0:01:30]}  hxg5 {[%clk 0:01:08]} 26. Rc1 {[%clk 0:00:28]}  Kg7 {[%clk 0:01:07]} 27. Bg2 {[%clk 0:00:27]}  Rh8 {[%clk 0:01:05]} 28. Qd1 {[%clk 0:00:20]}  Bg4 {[%clk 0:00:58]} 29. f3 {[%clk 0:00:17]}  Bd7 {[%clk 0:00:46]} 30. Kf2 {[%clk 0:00:15]}  g4 {[%clk 0:00:41]} 31. f4 {[%clk 0:00:04]}  Bf5 {[%clk 0:00:38]} 32. Qh1 {[%clk 0:00:03]}  Be4 {[%clk 0:00:33]} 33. Qxh5 {[%clk 0:00:03]}  Rxh5 {[%clk 0:00:34]} 34. Rg1 {[%clk 0:00:03]}  Rh2 {[%clk 0:00:26]} 35. Kf1 {[%clk 0:00:03]}  Bd3+ {[%clk 0:00:25]} 36. Ke1 {[%clk 0:00:04]}  Be4 {[%clk 0:00:22]} 37. Kf1 {[%clk 0:00:04]}  Kf8 {[%clk 0:00:22]} 38. b3 {[%clk 0:00:03]}  b5 {[%clk 0:00:21]} 39. a4 {[%clk 0:00:03]}  bxa4 {[%clk 0:00:20]} 40. bxa4 {[%clk 0:00:04]}  Bd3+ {[%clk 0:00:21]} 41. Ke1 {[%clk 0:00:04]}  Ne4 {[%clk 0:00:21]} 42. Bxe4 {[%clk 0:00:02]}  dxe4 {[%clk 0:00:22]} 43. Nf5 {[%clk 0:00:02]}  e3 {[%clk 0:00:20]} 44. Nxe3 {[%clk 0:00:01]}  Re2+ {[%clk 0:00:20]} 45. Kd1 {[%clk 0:00:02]}  Rxe3 {[%clk 0:00:20]} 46. Kd2 {[%clk 0:00:03]}  Rf3 {[%clk 0:00:21]} 47. a5 {[%clk 0:00:03]}  Bb5 {[%clk 0:00:21]} 48. Kc2 {[%clk 0:00:03]}  Kg7 {[%clk 0:00:21]} 49. Kb3 {[%clk 0:00:04]}  Kg6 {[%clk 0:00:21]} 50. Kb4 {[%clk 0:00:04]}  Re3 {[%clk 0:00:21]} 51. c4 {[%clk 0:00:05]}  Re4 {[%clk 0:00:22]} 52. Rc1 {[%clk 0:00:05]}  Bd7 {[%clk 0:00:20]} 53. Kc5 {[%clk 0:00:06]}  Re3 {[%clk 0:00:20]} 54. Kd6 {[%clk 0:00:06]}  Bc8 {[%clk 0:00:20]} 55. Kc7 {[%clk 0:00:06]}  Be6 {[%clk 0:00:21]} 56. c5 {[%clk 0:00:06]}  Rxg3 {[%clk 0:00:21]} 57. c6 {[%clk 0:00:06]}  Rb3 {[%clk 0:00:21]} 58. Kd6 {[%clk 0:00:06]}  g3 {[%clk 0:00:21]} 59. c7 {[%clk 0:00:06]}  g2 {[%clk 0:00:20]} 60. Rg1 {[%clk 0:00:06]}  Rg3 {[%clk 0:00:20]} 61. Ke5 {[%clk 0:00:05]}  Kh5 {[%clk 0:00:19]} 62. f5 {[%clk 0:00:05]}  Bc8 {[%clk 0:00:19]} 63. Kf4 {[%clk 0:00:05]}  Kh4 {[%clk 0:00:20]} 64. Ke5 {[%clk 0:00:02]}  Kh3 {[%clk 0:00:19]} 65. Kf6 {[%clk 0:00:02]}  Kh2 {[%clk 0:00:19]} 66. Re1 {[%clk 0:00:02]}  g1=Q {[%clk 0:00:19]} 67. Rxg1 {[%clk 0:00:02]}  Rxg1 {[%clk 0:00:20]} 68. Kxf7 {[%clk 0:00:03]}  Rf1 {[%clk 0:00:19]} 69. f6 {[%clk 0:00:03]}  Rf5 {[%clk 0:00:18]} 70. Ke7 {[%clk 0:00:03]}  Rxa5 {[%clk 0:00:19]} 71. f7 {[%clk 0:00:03]}  Re5+ {[%clk 0:00:19]} 72. Kf6 {[%clk 0:00:02]}  Rf5+ {[%clk 0:00:19]} 73. Ke7 {[%clk 0:00:02]}  a5 {[%clk 0:00:20]} 74. f8=Q {[%clk 0:00:03]}  Rxf8 {[%clk 0:00:21]} 75. Kxf8 {[%clk 0:00:04]}  a4 {[%clk 0:00:21]} 76. Ke7 {[%clk 0:00:05]}  a3 {[%clk 0:00:22]} 77. Kd8 {[%clk 0:00:06]}  Ba6 {[%clk 0:00:22]} 78. Kd7 {[%clk 0:00:06]}  a2 {[%clk 0:00:22]} 79. Kc6 {[%clk 0:00:07]}  a1=Q {[%clk 0:00:21]} 80. Kb6 {[%clk 0:00:08]}  Bc8 {[%clk 0:00:21]} 81. Kc6 {[%clk 0:00:08]}  Qa6+ {[%clk 0:00:22]} 82. Kd5 {[%clk 0:00:09]}  Qb7+ {[%clk 0:00:23]} 83. Kd6 {[%clk 0:00:10]}  Kg2 {[%clk 0:00:23]} 84. Ke7 {[%clk 0:00:10]}  Qxc7+ {[%clk 0:00:23]} 85. Ke8 {[%clk 0:00:11]}  Bd7+ {[%clk 0:00:24]} 86. Kf8 {[%clk 0:00:12]}  Bb5 {[%clk 0:00:24]} 0-1


[Site "https://www.chess.com"]

[Event "Titled Tuesday Blitz December 7 2021"]
[White "Donchenko, Alexander"]
[Black "Artemenko, Oleg"]
[WhiteFideId "24603295"]
[BlackFideId "14201798"]
[WhiteElo "2494"]
[BlackElo "2287"]
[Result "1-0"]
[Round "05"]
[TimeControl "180+1"]
[Date "2021.12.07"]
[WhiteClock "0:00:09"]
[BlackClock "0:00:02"]

1. e4 {[%clk 0:03:00]}  e6 {[%clk 0:02:59]} 2. d4 {[%clk 0:02:59]}  d5 {[%clk 0:03:00]} 3. Nc3 {[%clk 0:03:00]}  Nf6 {[%clk 0:03:00]} 4. e5 {[%clk 0:03:00]}  Nfd7 {[%clk 0:03:00]} 5. f4 {[%clk 0:03:01]}  c5 {[%clk 0:03:00]} 6. Nf3 {[%clk 0:03:01]}  Nc6 {[%clk 0:03:01]} 7. Be3 {[%clk 0:03:00]}  Qb6 {[%clk 0:03:01]} 8. Na4 {[%clk 0:02:58]}  Qa5+ {[%clk 0:03:01]} 9. c3 {[%clk 0:02:58]}  b6 {[%clk 0:03:01]} 10. Kf2 {[%clk 0:02:52]}  Ba6 {[%clk 0:02:59]} 11. a3 {[%clk 0:02:46]}  Bxf1 {[%clk 0:02:59]} 12. Rxf1 {[%clk 0:02:46]}  cxd4 {[%clk 0:02:57]} 13. cxd4 {[%clk 0:02:44]}  Be7 {[%clk 0:02:38]} 14. b4 {[%clk 0:02:44]}  Qa6 {[%clk 0:02:34]} 15. Nc3 {[%clk 0:02:44]}  Qb7 {[%clk 0:02:25]} 16. f5 {[%clk 0:02:40]}  Nd8 {[%clk 0:02:16]} 17. Qd3 {[%clk 0:02:35]}  Rc8 {[%clk 0:02:08]} 18. Rac1 {[%clk 0:02:35]}  a6 {[%clk 0:01:51]} 19. Kg1 {[%clk 0:02:33]}  exf5 {[%clk 0:01:47]} 20. Qxf5 {[%clk 0:02:26]}  g6 {[%clk 0:01:47]} 21. Qb1 {[%clk 0:02:14]}  Ne6 {[%clk 0:01:43]} 22. Qb3 {[%clk 0:02:14]}  Nc7 {[%clk 0:01:30]} 23. Bh6 {[%clk 0:02:07]}  b5 {[%clk 0:01:15]} 24. Rf2 {[%clk 0:02:00]}  Nb6 {[%clk 0:01:10]} 25. Bg7 {[%clk 0:01:43]}  Rg8 {[%clk 0:01:07]} 26. Bf6 {[%clk 0:01:44]}  Ne6 {[%clk 0:00:57]} 27. Rcf1 {[%clk 0:01:20]}  Rc4 {[%clk 0:00:34]} 28. Ne2 {[%clk 0:01:20]}  h6 {[%clk 0:00:24]} 29. Qe3 {[%clk 0:01:19]}  Bf8 {[%clk 0:00:21]} 30. Nf4 {[%clk 0:01:17]}  Qd7 {[%clk 0:00:17]} 31. Nxe6 {[%clk 0:01:09]}  Qxe6 {[%clk 0:00:17]} 32. Nd2 {[%clk 0:01:10]}  Rc7 {[%clk 0:00:17]} 33. Nb3 {[%clk 0:01:07]}  Nc4 {[%clk 0:00:18]} 34. Qc1 {[%clk 0:01:00]}  g5 {[%clk 0:00:18]} 35. Nc5 {[%clk 0:00:53]}  Bxc5 {[%clk 0:00:18]} 36. bxc5 {[%clk 0:00:54]}  Kd7 {[%clk 0:00:18]} 37. h4 {[%clk 0:00:36]}  Qg4 {[%clk 0:00:16]} 38. hxg5 {[%clk 0:00:32]}  hxg5 {[%clk 0:00:17]} 39. a4 {[%clk 0:00:28]}  b4 {[%clk 0:00:16]} 40. a5 {[%clk 0:00:29]}  Rc6 {[%clk 0:00:16]} 41. Qb1 {[%clk 0:00:25]}  Rb8 {[%clk 0:00:13]} 42. Bg7 {[%clk 0:00:23]}  f5 {[%clk 0:00:09]} 43. exf6 {[%clk 0:00:23]}  Qxd4 {[%clk 0:00:08]} 44. Qf5+ {[%clk 0:00:21]}  Kc7 {[%clk 0:00:09]} 45. Kh1 {[%clk 0:00:19]}  Qh4+ {[%clk 0:00:08]} 46. Kg1 {[%clk 0:00:19]}  Qd4 {[%clk 0:00:08]} 47. Qxg5 {[%clk 0:00:18]}  Ne3 {[%clk 0:00:06]} 48. Re1 {[%clk 0:00:17]}  Re6 {[%clk 0:00:05]} 49. f7 {[%clk 0:00:16]}  Qd3 {[%clk 0:00:04]} 50. f8=Q {[%clk 0:00:15]}  Rxf8 {[%clk 0:00:05]} 51. Bxf8 {[%clk 0:00:16]}  Kc6 {[%clk 0:00:05]} 52. Bd6 {[%clk 0:00:15]}  b3 {[%clk 0:00:05]} 53. Qg8 {[%clk 0:00:13]}  Qe4 {[%clk 0:00:04]} 54. Qb8 {[%clk 0:00:10]}  Kd7 {[%clk 0:00:01]} 55. Qb7+ {[%clk 0:00:09]}  Ke8 {[%clk 0:00:02]} 56. Rf8# {[%clk 0:00:09]} 1-0


[Site "https://www.chess.com"]